fUST/lending_fUST_20250527
["ID","MTS","AMOUNT","RATE_DAILY","PERIOD"]
[362465768,1748317844446,-430.0,0.00023779,2]
[362465769,1748317844456,-622.01317138,0.000239,2]
[362465770,1748317844466,-215.0738,0.00023936,2]
[362465771,1748317844475,-490.96901614,0.00023999,2]
[362465772,1748317844485,-2327.16757705,0.00024,3]
[362465773,1748317844625,-1234.94336975,0.00024,3]
[362465774,1748317844635,-9236.40532045,0.00024,4]
[362465775,1748317844647,-6690.39253824,0.00024,4]
[362465776,1748317844774,-1206.56342343,0.00024,4]
[362465817,1748317846619,-500.0,0.00019389,2]
[362465820,1748317846630,-500.0,0.00019663,2]
[362465822,1748317846640,-500.0,0.00019937,2]
[362465823,1748317846649,-1927.20124253,0.00024,4]
[362465825,1748317846658,-1087.44475865,0.00024,4]
[362465829,1748317846724,-268.43765055,0.00024,4]
[362465830,1748317846736,-6644.1175908,0.00024,4]
[362465831,1748317846746,-2000.0,0.00024,2]
[362465832,1748317846755,-3000.0,0.00024,2]
[362465833,1748317846764,-4042.0,0.00024,30]
[362465834,1748317846774,-151.00000001,0.00024,2]
[362465835,1748317846782,-26199.42848527,0.00024,30]
[362465836,1748317846794,-3710.73283813,0.00024,30]
[362465837,1748317936684,1779.9548677,0.00020838,120]
[362465845,1748318039615,3000.0,0.00024649,120]
[362465850,1748318731119,-2624.26052224,0.00018491,2]
[362465851,1748318774906,5879.33,0.00016,2]
[362465852,1748318781946,2856.6756137,0.00024658,120]
[362465854,1748318825101,-6493.59847646,0.00018491,2]
[362465855,1748318825123,-872.595555,0.00018899,2]
[362465856,1748318825144,-300.0,0.00019285,2]
[362465857,1748318825165,-300.0,0.00019285,2]
[362465858,1748318825187,-300.0,0.00019385,2]
[362465859,1748318825208,-430.0,0.00019386,2]
[362465860,1748318825231,-515.84,0.00019386,2]
[362465861,1748318825252,-430.0,0.00019386,2]
[362465862,1748318825274,-430.0,0.00019386,2]
[362465863,1748318825295,-430.0,0.00019386,2]
[362465864,1748318825316,-430.0,0.00019386,2]
[362465865,1748318825338,-430.0,0.00019386,2]
[362465866,1748318825364,-430.0,0.00019386,2]
[362465867,1748318825386,-430.0,0.00019386,2]
[362465868,1748318825408,-430.0,0.00019386,2]
[362465869,1748318825435,-430.0,0.00019386,2]
[362465870,1748318825457,-430.0,0.00019386,2]
[362465871,1748318825480,-430.0,0.00019386,2]
[362465872,1748318825503,-430.0,0.00019386,2]
[362465873,1748318825526,-430.0,0.00019386,2]
[362465874,1748318825549,-117.51575209,0.00019386,2]
[362465876,1748318831082,-332.55424791,0.00019386,2]
[362465877,1748318831105,-430.0,0.00019386,2]
[362465878,1748318831125,-217.76516881,0.00019386,2]
[362465879,1748318833118,-117.134434,0.00019386,2]
[362465880,1748318833139,-440.99112872,0.00019386,2]
[362465881,1748318833162,-430.0,0.00019386,2]
[362465882,1748318833184,-475.16239462,0.00019386,2]
[362465883,1748318833205,-383.65942728,0.00019386,2]
[362465884,1748318833227,-430.0,0.00019386,2]
[362465885,1748318833248,-430.0,0.00019386,2]
[362465886,1748318833269,-482.83717487,0.00019386,2]
[362465887,1748318833290,-371.81367205,0.00019386,2]
[362465888,1748318833312,-430.0,0.00019386,2]
[362465889,1748318833332,-430.0,0.00019386,2]
[362465890,1748318833354,-430.0,0.00019386,2]
[362465891,1748318833375,-430.0,0.00019386,2]
[362465892,1748318833396,-430.0,0.00019386,2]
[362465893,1748318833420,-430.0,0.00019386,2]
[362465894,1748318833442,-430.0,0.00019386,2]
[362465895,1748318833469,-605.4,0.00019386,2]
[362465896,1748318833491,-229.88231609,0.00019386,2]
[362465897,1748318833515,-500.0,0.00019386,2]
[362465898,1748318833538,-155.33086752,0.00019386,2]
[362465899,1748318833562,-336.90167801,0.00019386,2]
[362465900,1748318833584,-213.00743177,0.00019386,2]
[362465901,1748318833606,-3102.55175063,0.00019386,2]
[362465902,1748318896138,193.0,0.00016,2]
[362465903,1748318896973,193.0,0.00016,2]
[362465904,1748318949122,-153.2916,0.00016438,3]
[362465905,1748318958108,-5.7084,0.00016438,3]
[362465906,1748318958131,-2934.2916,0.00018388,2]
[362465918,1748319032556,-248.435609,0.00018386,2]
[362465919,1748319032567,-145.2454062,0.00018388,2]
[362465920,1748319032577,-193.0,0.000193,3]
[362465921,1748319032588,-192.11777555,0.000193,3]
[362465922,1748319032598,-279.0,0.00019384,2]
[362465923,1748319032608,-430.0,0.00019385,2]
[362465924,1748319032620,-430.0,0.00019385,2]
[362465925,1748319032630,-430.0,0.00019385,2]
[362465926,1748319032639,-430.0,0.00019385,2]
[362465927,1748319032649,-430.0,0.00019385,2]
[362465928,1748319032659,-430.0,0.00019385,2]
[362465929,1748319032669,-431.32,0.00019385,2]
[362465930,1748319032679,-430.0,0.00019386,2]
[362465931,1748319032690,-430.0,0.00019386,2]
[362465932,1748319032702,-430.0,0.00019386,2]
[362465933,1748319032712,-435.22,0.00019386,2]
[362465934,1748319032722,-430.0,0.00019386,2]
[362465935,1748319032732,-430.0,0.00019386,2]
[362465936,1748319032742,-430.0,0.00019386,2]
[362465937,1748319032752,-430.0,0.00019386,2]
[362465938,1748319032762,-430.0,0.00019386,2]
[362465939,1748319032772,-430.0,0.00019386,2]
[362465940,1748319032781,-430.0,0.00019386,2]
[362465941,1748319032792,-443.89532099,0.00019386,2]
[362465942,1748319032802,-430.0,0.00019386,2]
[362465944,1748319032812,-430.0,0.00019386,2]
[362465946,1748319032823,-332.64067343,0.00019386,2]
[362465948,1748319032835,-97.35932657,0.00019386,2]
[362465951,1748319032845,-430.0,0.00019386,2]
[362465953,1748319032857,-430.0,0.00019386,2]
[362465955,1748319032867,-430.0,0.00019386,2]
[362465957,1748319032876,-491.06491886,0.00019386,2]
[362465959,1748319032886,-430.0,0.00019386,2]
[362465961,1748319032895,-430.0,0.00019386,2]
[362465963,1748319032905,-386.64023349,0.00019386,2]
[362465965,1748319032915,-430.0,0.00019386,2]
[362465967,1748319032924,-430.0,0.00019386,2]
[362465969,1748319032934,-430.0,0.00019386,2]
[362465971,1748319032943,-349.73989259,0.00019386,2]
[362465973,1748319032952,-349.28049335,0.00019386,2]
[362465975,1748319032962,-43.10741447,0.00019386,2]
[362466002,1748319038633,-399.46,0.00019385,2]
[362466003,1748319038643,-366.85085928,0.00019386,2]
[362466004,1748319038654,-430.0,0.00019386,2]
[362466005,1748319038663,-430.0,0.00019386,2]
[362466006,1748319038673,-350.31654117,0.00019386,2]
[362466007,1748319038683,-430.0,0.00019386,2]
[362466008,1748319038692,-430.0,0.00019386,2]
[362466009,1748319038702,-430.0,0.00019386,2]
[362466010,1748319038712,-430.0,0.00019386,2]
[362466011,1748319038722,-109.1904132,0.00019386,2]
[362466012,1748319038734,-8328.21001011,0.00019386,2]
[362466013,1748319038745,-562.7876311,0.00019386,2]
[362466038,1748319043797,-300.0,0.00019385,2]
[362466039,1748319043810,-505.64290666,0.00019386,2]
[362466040,1748319043822,-904.8665368,0.00019386,2]
[362466041,1748319043834,-168.72,0.00019387,2]
[362466042,1748319043846,-430.0,0.00019387,2]
[362466043,1748319043859,-430.0,0.00019387,2]
[362466044,1748319043870,-430.0,0.00019387,2]
[362466045,1748319043883,-430.0,0.00019387,2]
[362466046,1748319043896,-430.0,0.00019387,2]
[362466048,1748319043917,-430.0,0.00019387,2]
[362466049,1748319043935,-430.0,0.00019387,2]
[362466050,1748319043949,-430.0,0.00019387,2]
[362466051,1748319043964,-462.51408139,0.00019387,2]
[362466052,1748319043977,-430.0,0.00019387,2]
[362466053,1748319043992,-430.0,0.00019387,2]
[362466054,1748319044005,-430.0,0.00019387,2]
[362466055,1748319044017,-430.0,0.00019387,2]
[362466056,1748319044029,-430.0,0.00019387,2]
[362466057,1748319044041,-430.0,0.00019387,2]
[362466058,1748319044053,-430.0,0.00019387,2]
[362466059,1748319044065,-246.01438803,0.00019387,2]
[362466060,1748319044081,-400.0,0.00019387,2]
[362466061,1748319044095,-507.52922009,0.00019387,2]
[362466062,1748319044109,-449.12365192,0.00019387,2]
[362466063,1748319044121,-430.0,0.00019387,2]
[362466064,1748319044136,-430.0,0.00019387,2]
[362466065,1748319044148,-455.42385147,0.00019387,2]
[362466066,1748319044162,-508.62062128,0.00019387,2]
[362466067,1748319044173,-474.12046204,0.00019387,2]
[362466068,1748319044185,-430.0,0.00019387,2]
[362466069,1748319044197,-430.0,0.00019387,2]
[362466070,1748319044208,-430.0,0.00019387,2]
[362466071,1748319044220,-430.0,0.00019387,2]
[362466072,1748319044231,-430.0,0.00019387,2]
[362466073,1748319044241,-430.0,0.00019387,2]
[362466074,1748319044254,-430.0,0.00019387,2]
[362466075,1748319044266,-430.0,0.00019387,2]
[362466076,1748319044278,-430.0,0.00019387,2]
[362466077,1748319044290,-430.0,0.00019387,2]
[362466078,1748319044302,-430.0,0.00019387,2]
[362466079,1748319044315,-430.0,0.00019387,2]
[362466080,1748319044327,-430.0,0.00019387,2]
[362466081,1748319044339,-385.04879985,0.00019387,2]
[362466082,1748319044352,-430.0,0.00019387,2]
[362466083,1748319044364,-430.0,0.00019387,2]
[362466084,1748319044376,-430.0,0.00019387,2]
[362466085,1748319044389,-430.0,0.00019387,2]
[362466086,1748319044402,-435.91555211,0.00019387,2]
[362466087,1748319044415,-430.0,0.00019387,2]
[362466088,1748319044429,-430.0,0.00019387,2]
[362466089,1748319044441,-430.0,0.00019387,2]
[362466090,1748319044454,-380.72048411,0.00019387,2]
[362466091,1748319044467,-430.0,0.00019387,2]
[362466092,1748319044479,-473.97277735,0.00019387,2]
[362466093,1748319044495,-430.0,0.00019387,2]
[362466094,1748319044507,-509.88,0.00019387,2]
[362466095,1748319044518,-332.63020343,0.00019387,2]
[362466096,1748319044529,-430.0,0.00019387,2]
[362466097,1748319044540,-254.66955714,0.00019387,2]
[362466098,1748319044550,-430.0,0.00019387,2]
[362466099,1748319044562,-430.0,0.00019387,2]
[362466100,1748319044574,-430.0,0.00019387,2]
[362466101,1748319044585,-430.0,0.00019387,2]
[362466102,1748319044598,-385.90702769,0.00019388,2]
[362466103,1748319044611,-155.72141373,0.00019388,2]
[362466104,1748319044627,-434.16310397,0.00019388,2]
[362466105,1748319044639,-430.0,0.00019388,2]
[362466106,1748319044649,-444.86,0.00019388,2]
[362466107,1748319044659,-430.0,0.00019388,2]
[362466108,1748319044671,-430.0,0.00019388,2]
[362466109,1748319044682,-430.0,0.00019388,2]
[362466110,1748319044694,-430.0,0.00019388,2]
[362466111,1748319044706,-500.0,0.00019388,2]
[362466112,1748319044718,-430.0,0.00019388,2]
[362466113,1748319044730,-198.11,0.00019389,2]
[362466114,1748319044745,-464.98331165,0.00019389,2]
[362466115,1748319044756,-430.0,0.00019659,2]
[362466116,1748319044769,-430.0,0.00019659,2]
[362466117,1748319044781,-401.53332796,0.00019659,2]
[362466118,1748319044793,-430.0,0.00019659,2]
[362466119,1748319044805,-431.32,0.00019659,2]
[362466120,1748319044818,-517.25508792,0.0001966,2]
[362466121,1748319044830,-430.0,0.0001966,2]
[362466122,1748319044841,-430.0,0.0001966,2]
[362466123,1748319044854,-450.5663208,0.0001966,2]
[362466124,1748319044867,-430.0,0.0001966,2]
[362466125,1748319044879,-605.4,0.0001966,2]
[362466126,1748319044892,-430.0,0.0001966,2]
[362466127,1748319044904,-430.0,0.0001966,2]
[362466128,1748319044915,-400.6395,0.0001966,2]
[362466129,1748319044928,-430.0,0.0001966,2]
[362466130,1748319044940,-430.0,0.0001966,2]
[362466131,1748319044952,-430.0,0.0001966,2]
[362466132,1748319044963,-300.80297109,0.0001966,2]
[362466133,1748319044974,-430.0,0.0001966,2]
[362466134,1748319044986,-464.0,0.0001966,2]
[362466135,1748319044997,-430.0,0.0001966,2]
[362466136,1748319045009,-430.0,0.0001966,2]
[362466137,1748319045020,-430.0,0.0001966,2]
[362466138,1748319045033,-430.0,0.00019661,2]
[362466139,1748319045044,-430.0,0.00019661,2]
[362466140,1748319045055,-430.0,0.00019661,2]
[362466141,1748319045066,-430.0,0.00019661,2]
[362466142,1748319045078,-430.0,0.00019661,2]
[362466143,1748319045091,-430.0,0.00019661,2]
[362466144,1748319045103,-430.0,0.00019661,2]
[362466145,1748319045114,-430.0,0.00019661,2]
[362466146,1748319045125,-432.36079974,0.00019661,2]
[362466147,1748319045136,-455.28,0.00019661,2]
[362466148,1748319045148,-492.42747307,0.00019661,2]
[362466149,1748319045159,-451.66686087,0.00019661,2]
[362466150,1748319045170,-430.0,0.00019661,2]
[362466151,1748319045182,-430.0,0.00019661,2]
[362466152,1748319045194,-430.0,0.00019661,2]
[362466153,1748319045205,-430.0,0.00019661,2]
[362466154,1748319045216,-430.0,0.00019661,2]
[362466155,1748319045228,-430.0,0.00019661,2]
[362466156,1748319045239,-430.0,0.00019661,2]
[362466157,1748319045251,-430.0,0.00019661,2]
[362466158,1748319045263,-371.05,0.00019661,2]
[362466159,1748319045275,-430.0,0.00019661,2]
[362466160,1748319045286,-430.0,0.00019661,2]
[362466161,1748319045299,-430.0,0.00019661,2]
[362466162,1748319045310,-430.0,0.00019661,2]
[362466163,1748319045323,-430.0,0.00019661,2]
[362466164,1748319045336,-430.0,0.00019661,2]
[362466165,1748319045347,-430.0,0.00019662,2]
[362466166,1748319045517,-430.0,0.00019662,2]
[362466167,1748319045528,-150.0,0.00019741,2]
[362466168,1748319045539,-513.85908739,0.00019933,2]
[362466169,1748319045549,-430.0,0.00019933,2]
[362466170,1748319045560,-430.0,0.00019933,2]
[362466171,1748319045570,-431.32,0.00019933,2]
[362466172,1748319045582,-430.0,0.00019934,2]
[362466173,1748319045592,-430.0,0.00019934,2]
[362466174,1748319045601,-430.0,0.00019934,2]
[362466175,1748319045611,-605.4,0.00019934,2]
[362466176,1748319045626,-459.4352748,0.00019934,2]
[362466177,1748319045636,-457.19285801,0.00019934,2]
[362466178,1748319045646,-573.66,0.00019934,2]
[362466179,1748319045655,-430.0,0.00019934,2]
[362466180,1748319045667,-453.8,0.00019934,2]
[362466181,1748319045676,-430.0,0.00019934,2]
[362466182,1748319045686,-430.0,0.00019934,2]
[362466183,1748319045698,-430.0,0.00019935,2]
[362466184,1748319045708,-270.5,0.00019935,2]
[362466185,1748319045718,-430.0,0.00019935,2]
[362466186,1748319045728,-230.21236258,0.00019935,2]
[362466187,1748319045738,-430.0,0.00019935,2]
[362466188,1748319045747,-384.98,0.00019935,2]
[362466189,1748319045758,-430.0,0.00019935,2]
[362466190,1748319045771,-430.0,0.00019935,2]
[362466191,1748319045782,-430.0,0.00019935,2]
[362466192,1748319045792,-430.0,0.00019935,2]
[362466193,1748319045802,-430.0,0.00019935,2]
[362466194,1748319045812,-430.0,0.00019935,2]
[362466195,1748319045823,-430.0,0.00019935,2]
[362466196,1748319045833,-430.0,0.00019935,2]
[362466197,1748319045844,-430.0,0.00019935,2]
[362466198,1748319045854,-500.0,0.00020146,2]
[362466199,1748319045864,-500.0,0.00020146,2]
[362466200,1748319045873,-178.07187135,0.00020207,2]
[362466215,1748319046691,-476.03533582,0.00019385,2]
[362466216,1748319046701,-251.92812865,0.00020207,2]
[362466218,1748319046712,-102.67603553,0.00020207,2]
[362466227,1748319932121,-160.0,0.00016438,3]
[362466228,1748319932145,-102.42605222,0.000189,2]
[362466234,1748319962875,9906.0,0.0002465,120]
[362466241,1748320035068,731.51418121,0.0001938,30]
[362466242,1748320043082,-2703.54281553,0.00018383,2]
[362466243,1748320044190,-1382.50578827,0.00018383,2]
[362466244,1748320044212,-309.60684284,0.000189,2]
[362466245,1748320044235,-2114.0930264,0.00019055,2]
[362466246,1748320044256,-222.87042547,0.00019286,2]
[362466247,1748320044279,-300.0,0.0001938,2]
[362466248,1748320044301,-1200.0,0.00019381,2]
[362466249,1748320044324,-300.0,0.00019381,2]
[362466250,1748320044345,-450.0,0.00019381,2]
[362466251,1748320044367,-500.0,0.00019381,2]
[362466252,1748320044388,-500.0,0.00019381,2]
[362466253,1748320044410,-370.71861238,0.00019381,2]
[362466254,1748320044434,-58.76174702,0.00019381,2]
[362466255,1748320047122,-441.23825298,0.00019381,2]
[362466256,1748320047147,-500.0,0.00019381,2]
[362466257,1748320047168,-500.0,0.00019381,2]
[362466258,1748320047191,-500.0,0.00019381,2]
[362466259,1748320047211,-500.0,0.00019381,2]
[362466260,1748320047234,-500.0,0.00019381,2]
[362466261,1748320047257,-500.0,0.00019381,2]
[362466262,1748320047278,-500.0,0.00019381,2]
[362466263,1748320047299,-165.73611704,0.00019381,2]
[362466264,1748320047319,-466.568322,0.00019381,2]
[362466265,1748320047341,-500.0,0.00019381,2]
[362466266,1748320047363,-500.0,0.00019381,2]
[362466267,1748320047384,-500.0,0.00019381,2]
[362466268,1748320047407,-424.0747913,0.00019381,2]
[362466269,1748320047428,-500.0,0.00019381,2]
[362466270,1748320047449,-500.0,0.00019381,2]
[362466271,1748320047470,-206.84786708,0.00019381,2]
[362466272,1748320053082,-293.15213292,0.00019381,2]
[362466273,1748320053109,-500.0,0.00019381,2]
[362466274,1748320053138,-500.0,0.00019381,2]
[362466275,1748320053163,-500.0,0.00019381,2]
[362466276,1748320053188,-500.0,0.00019381,2]
[362466277,1748320053213,-414.893334,0.00019381,2]
[362466278,1748320053237,-500.0,0.00019381,2]
[362466279,1748320053262,-500.0,0.00019381,2]
[362466280,1748320053285,-500.0,0.00019381,2]
[362466281,1748320053319,-287.51674209,0.00019381,2]
[362466285,1748320129738,211.55162844,0.0002465,120]
[362466287,1748320145086,-154.7322,0.00016438,3]
[362466288,1748320146074,-5.2678,0.00016438,3]
[362466289,1748320146095,-255.2616741,0.00018385,2]
[362466290,1748320146116,-108.2116091,0.000187,2]
[362466328,1748320231769,-46.86419736,0.000187,2]
[362466330,1748320231779,-193.272109,0.00019178,2]
[362466331,1748320231789,-219.41007927,0.00019281,2]
[362466332,1748320231798,-219.41007926,0.00019282,2]
[362466333,1748320231808,-170.31747935,0.0001938,2]
[362466334,1748320231820,-129.68252065,0.0001938,2]
[362466335,1748320231830,-402.17366004,0.00019381,2]
[362466336,1748320231839,-158.68786082,0.00019381,2]
[362466337,1748320231849,-424.97366024,0.00019381,2]
[362466338,1748320231862,-79.98163484,0.00019381,2]
[362466339,1748320231871,-430.0,0.00019381,2]
[362466340,1748320231881,-418.31493588,0.00019381,2]
[362466341,1748320231891,-430.0,0.00019381,2]
[362466342,1748320231901,-409.90327939,0.00019381,2]
[362466343,1748320231911,-353.05710773,0.00019381,2]
[362466344,1748320231931,-49.66043395,0.00019381,2]
[362466346,1748320231941,-430.0,0.00019381,2]
[362466348,1748320231951,-430.0,0.00019381,2]
[362466350,1748320231961,-430.0,0.00019381,2]
[362466352,1748320231971,-430.0,0.00019381,2]
[362466354,1748320231980,-430.0,0.00019381,2]
[362466356,1748320231990,-1032.62,0.00019381,2]
[362466357,1748320231999,-400.0,0.00019382,2]
[362466358,1748320232009,-503.66294754,0.00019382,2]
[362466359,1748320232019,-452.94259567,0.00019382,2]
[362466360,1748320232029,-430.01064106,0.00019382,2]
[362466361,1748320232040,-274.07295235,0.00019382,2]
[362466362,1748320232049,-500.0,0.00019382,2]
[362466363,1748320232059,-500.0,0.00019382,2]
[362466364,1748320232069,-490.54370378,0.00019382,2]
[362466365,1748320232079,-500.0,0.00019382,2]
[362466366,1748320232090,-500.0,0.00019382,2]
[362466367,1748320232100,-500.0,0.00019382,2]
[362466368,1748320232110,-500.0,0.00019382,2]
[362466369,1748320232121,-533.64241124,0.00019382,2]
[362466370,1748320232130,-500.0,0.00019382,2]
[362466371,1748320232141,-432.93551097,0.00019382,2]
[362466372,1748320232150,-314.82291311,0.00019382,2]
[362466373,1748320232160,-401.8984415,0.00019382,2]
[362466374,1748320232169,-412.07496141,0.00019382,2]
[362466375,1748320232178,-431.37555284,0.00019382,2]
[362466376,1748320232188,-430.0,0.00019382,2]
[362466377,1748320232197,-394.98024811,0.00019382,2]
[362466378,1748320232207,-412.38570881,0.00019382,2]
[362466379,1748320232217,-430.0,0.00019382,2]
[362466380,1748320232226,-430.0,0.00019382,2]
[362466381,1748320232236,-430.0,0.00019382,2]
[362466382,1748320232246,-430.0,0.00019382,2]
[362466383,1748320232255,-425.34341696,0.00019382,2]
[362466384,1748320232265,-430.0,0.00019382,2]
[362466385,1748320232274,-450.02466814,0.00019383,2]
[362466386,1748320232284,-430.0,0.00019383,2]
[362466387,1748320232293,-430.0,0.00019383,2]
[362466388,1748320232303,-430.0,0.00019383,2]
[362466389,1748320232312,-430.0,0.00019383,2]
[362466390,1748320232322,-430.0,0.00019383,2]
[362466391,1748320232331,-430.0,0.00019383,2]
[362466392,1748320232340,-430.0,0.00019383,2]
[362466393,1748320232349,-430.0,0.00019383,2]
[362466394,1748320232358,-430.0,0.00019383,2]
[362466395,1748320232367,-430.0,0.00019383,2]
[362466396,1748320232378,-400.0,0.00019383,2]
[362466397,1748320232387,-430.0,0.00019383,2]
[362466398,1748320232396,-401.60085978,0.00019383,2]
[362466399,1748320232405,-500.0,0.00019383,2]
[362466400,1748320232414,-430.0,0.00019383,2]
[362466401,1748320232424,-430.0,0.00019383,2]
[362466402,1748320232434,-400.0,0.00019383,2]
[362466403,1748320232443,-430.0,0.00019383,2]
[362466404,1748320232453,-470.0,0.00019383,2]
[362466405,1748320232462,-430.0,0.00019383,2]
[362466406,1748320232472,-384.20434416,0.00019383,2]
[362466407,1748320232482,-430.0,0.00019383,2]
[362466408,1748320232501,-470.0,0.00019383,2]
[362466409,1748320232510,-470.0,0.00019383,2]
[362466410,1748320232519,-383.26064603,0.00019383,2]
[362466411,1748320232529,-430.0,0.00019383,2]
[362466412,1748320232539,-430.0,0.00019383,2]
[362466413,1748320232548,-430.0,0.00019383,2]
[362466414,1748320232557,-430.0,0.00019383,2]
[362466415,1748320232567,-430.0,0.00019383,2]
[362466416,1748320232576,-430.0,0.00019383,2]
[362466417,1748320232585,-446.98,0.00019383,2]
[362466418,1748320232597,-430.0,0.00019383,2]
[362466419,1748320232608,-430.0,0.00019383,2]
[362466420,1748320232617,-430.0,0.00019383,2]
[362466421,1748320232628,-430.0,0.00019383,2]
[362466422,1748320232638,-430.0,0.00019383,2]
[362466423,1748320232647,-223.49018546,0.00019383,2]
[362466424,1748320232657,-430.0,0.00019383,2]
[362466425,1748320232666,-430.0,0.00019383,2]
[362466426,1748320232675,-430.0,0.00019383,2]
[362466427,1748320232687,-156.42,0.00019383,2]
[362466428,1748320232698,-462.5465889,0.00019383,2]
[362466429,1748320232710,-430.0,0.00019383,2]
[362466430,1748320232720,-430.0,0.00019383,2]
[362466431,1748320232731,-430.0,0.00019383,2]
[362466432,1748320232741,-430.0,0.00019383,2]
[362466433,1748320232752,-430.0,0.00019383,2]
[362466434,1748320232762,-385.78061683,0.00019383,2]
[362466435,1748320232773,-430.0,0.00019383,2]
[362466436,1748320232783,-430.0,0.00019383,2]
[362466437,1748320232792,-1235.64,0.00019383,2]
[362466438,1748320232802,-1816.22,0.00019383,2]
[362466439,1748320232812,-430.0,0.00019383,2]
[362466440,1748320232823,-430.0,0.00019383,2]
[362466441,1748320232833,-430.0,0.00019383,2]
[362466442,1748320232842,-430.0,0.00019383,2]
[362466443,1748320232852,-430.0,0.00019383,2]
[362466444,1748320232862,-430.0,0.00019383,2]
[362466445,1748320232872,-430.0,0.00019383,2]
[362466446,1748320232881,-430.0,0.00019383,2]
[362466447,1748320232891,-430.0,0.00019383,2]
[362466448,1748320232900,-430.0,0.00019383,2]
[362466449,1748320232909,-430.0,0.00019383,2]
[362466450,1748320232919,-430.0,0.00019383,2]
[362466451,1748320232928,-430.0,0.00019383,2]
[362466452,1748320232937,-792.51,0.00019383,2]
[362466453,1748320232946,-430.0,0.00019383,2]
[362466454,1748320232956,-430.0,0.00019383,2]
[362466455,1748320232966,-906.54,0.00019383,2]
[362466456,1748320232975,-430.0,0.00019383,2]
[362466457,1748320232985,-430.0,0.00019383,2]
[362466458,1748320232995,-430.0,0.00019383,2]
[362466459,1748320233004,-430.0,0.00019383,2]
[362466460,1748320233015,-430.0,0.00019383,2]
[362466461,1748320233025,-430.0,0.00019383,2]
[362466462,1748320233035,-430.0,0.00019383,2]
[362466463,1748320233044,-430.0,0.00019383,2]
[362466464,1748320233055,-430.0,0.00019383,2]
[362466465,1748320233065,-430.0,0.00019383,2]
[362466466,1748320233074,-376.0337474,0.00019383,2]
[362466467,1748320233083,-407.96637653,0.00019383,2]
[362466468,1748320233093,-380.31616048,0.00019383,2]
[362466469,1748320233103,-430.0,0.00019383,2]
[362466470,1748320233113,-430.0,0.00019383,2]
[362466471,1748320233123,-430.0,0.00019383,2]
[362466472,1748320233132,-430.0,0.00019383,2]
[362466473,1748320233143,-430.0,0.00019383,2]
[362466474,1748320233152,-430.0,0.00019383,2]
[362466475,1748320233162,-384.2046547,0.00019383,2]
[362466476,1748320233171,-430.0,0.00019383,2]
[362466477,1748320233181,-430.0,0.00019383,2]
[362466478,1748320233192,-430.0,0.00019383,2]
[362466479,1748320233201,-430.0,0.00019383,2]
[362466480,1748320233210,-430.0,0.00019383,2]
[362466481,1748320233220,-381.01163647,0.00019383,2]
[362466482,1748320233230,-430.0,0.00019383,2]
[362466483,1748320233240,-430.0,0.00019383,2]
[362466484,1748320233250,-430.0,0.00019383,2]
[362466485,1748320233259,-376.30547701,0.00019383,2]
[362466486,1748320233269,-430.0,0.00019383,2]
[362466487,1748320233278,-430.0,0.00019383,2]
[362466488,1748320233287,-430.0,0.00019383,2]